{"text_format":"3","workbook":"xlsx","n_sheets":4,"sheets":["Teetähised","Tegevuskava","Teave","Diagrammi andmed"],"not_rendered":{"charts":1,"defined_names":2},"read":"whole","date_system":"1900"}

{"sheet":"Teetähised","index":0,"n_rows":27,"n_cols":5,"rows_kept":27}
["Sellel töölehel saate tegevuskava loomiseks sisestada olulised teetähised ja tegevused.\nTöölehe pealkiri on lahtris C1. \nSelle töölehe kasutamise juhised, sealhulgas juhised ekraanilugerite jaoks, leiate töölehelt Teave.\nEdasiste juhiste hankimiseks liikuge veerus A allapoole.",null,"Teetähised"]
["Tabelipäised on lahtrites C2–E2. Kirjete sortimiseks või otsimiseks kasutage funktsiooni Sordi ja filtreeri.\nSisestage tabelisse alates lahtrist C3 teetähised kuupäevadega ja määrake paigutus teetähise diagrammile kandmiseks.\nVeerg B on peidetud. Nende andmete alusel loodud diagramm, kasutades kerimisriba ajaskaala sektorite kuvamiseks. Veerg B aitab määrata, milline teetähis kerimisriba astmestamisel diagrammile kantakse. \nHoiatus. Veeru B sisu kustutamine või muutmine võib rikkuda töövihikus loodud diagrammile kandmise terviklikkuse.","Nr","Paigutus","Kuupäev","Teetähis"]
["Sisestage lahtrisse C1 kuupäeva ja teetähise diagrammile kandmise paigutus. Sisestage positiivne arv vahemikus 1–3, et kanda teetähis diagrammile ajaskaala peal. Sisestage negatiivne arv vahemikus 1–3, et kanda teetähis diagrammile ajaskaala all.\nSisestage tabelis veergu D ja E kuupäev ja teetähis või tegevus.\nKorrake seda igal uuel real paremal asuvas tabelis.\nNäidisandmed on toodud ridadel 3–26. Oma tegevuskava loomiseks muutke või kustutage näidissisu.\nJärgmise juhise saamiseks liikuge lahtrisse A27.",{"$f":"ROW($A1)","v":1},1,{"$f":"TODAY()","v":"2018-06-29"},"Algus"]
[null,{"$f":"ROW($A2)","v":2},-2,{"$f":"D3+10","v":"2018-07-09"},"Probleemi analüüs\n1. tegevus"]
[null,{"$f":"ROW($A3)","v":3},1,{"$f":"D4+20","v":"2018-07-29"},"Ärijuhtumi arendamine\n1. tegevus\n2. tegevus"]
[null,{"$f":"ROW($A4)","v":4},-1,{"$f":"D5+30","v":"2018-08-28"},"Esitluse ülevaatamine"]
[null,5,{"v":-0.5,"d":"-1"},{"$f":"D6+40","v":"2018-10-07"},"Täideviimise käivitus\n1. tegevus\n2. tegevus"]
[null,6,2,{"$f":"D7+50","v":"2018-11-26"},"Täideviimise kohandamine\n1. tegevus\n2. tegevus\n3. tegevus"]
[null,7,{"v":0.5,"d":"1"},{"$f":"D8+60","v":"2019-01-25"},"Osaniku sisseost"]
[null,8,-1,{"$f":"D9+70","v":"2019-04-05"},"Ressursside valimine"]
[null,9,{"v":0.5,"d":"1"},{"$f":"D10+80","v":"2019-06-24"},"Meeskonna loomine\n1. tegevus "]
[null,10,-2,{"$f":"D11+90","v":"2019-09-22"},"Meeskonna käivitus\n1. tegevus \n2. tegevus\n3. tegevus\n4. tegevus"]
[null,11,3,{"$f":"D12+100","v":"2019-12-31"},"Andmete kogumise alustamine"]
[null,12,-1,{"$f":"D13+90","v":"2020-03-30"},"Andmeanalüüs"]
[null,13,1,{"$f":"D14+80","v":"2020-06-18"},"Kujundus"]
[null,14,1,{"$f":"D15+70","v":"2020-08-27"},"Kontseptsiooni kontroll"]
[null,15,-3,{"$f":"D16+60","v":"2020-10-26"},"Testimine ja analüüs"]
[null,16,-2,{"$f":"D17+50","v":"2020-12-15"},"Ümberkujundamine"]
[null,17,2,{"$f":"D18+40","v":"2021-01-24"},"Edasiarendus"]
[null,18,-1,{"$f":"D19+30","v":"2021-02-23"},"Testimine ja analüüs"]
[null,19,1,{"$f":"D20+20","v":"2021-03-15"},"Ümberkujundamine"]
[null,20,-3,{"$f":"D21+10","v":"2021-03-25"},"Edasiarendus"]
[null,21,2,{"$f":"D22+20","v":"2021-04-14"},"Lõpptestimine"]
[null,22,1,{"$f":"D23+30","v":"2021-05-14"},"Beetatestimine"]
[null,23,-3,{"$f":"D24+40","v":"2021-06-23"},"Läbivaatus"]
[null,24,-2,{"$f":"D25+50","v":"2021-08-12"},"Turule laskmine"]
["Tegevuskava teetähiste tabelisse täiendavate ridade saamiseks lisage lihtsalt uus rida selle rea ette.\nSellel töölehel pole rohkem juhiseid.",null,"Täiendavate teetähiste lisamiseks lisage uusi ridu selle rea ette."]

{"sheet":"Tegevuskava","index":1,"n_rows":3,"n_cols":4,"rows_kept":3}
["Sellel töölehel on diagramm, mis kuvab teetähised töölehelt Teetähised. \nAastad on toodud lahtrites B2, C2 ja D2 ning on vormindatud laadiga Pealkiri 3.\nKorraga kantakse diagrammile 10 teetähist. \nTegevuskava sirvimiseks kasutage lahtrites B4–D4 asuvat kerimisriba.\nAjaskaala aastad asuvad lahtrites B3–D3.\nSellel töölehel pole rohkem juhiseid."]
[]
[null,{"$f":"'Diagrammi andmed'!B20","v":2018},{"$f":"'Diagrammi andmed'!B21","v":""},{"$f":"'Diagrammi andmed'!B22","v":2019}]

{"sheet":"Teave","index":2,"n_rows":5,"n_cols":1,"rows_kept":5}
["Töövihiku teave"]
["Ekraanilugeri juhised"]
["Selles töövihikus on 4 töölehte. \n\nTeetähised\nTegevuskava\nTeave\nDiagrammi andmed (peidetud)\n\nIga töölehe juhised leiate vastava töölehe veerust A. Juhised algavad alati lahtrist A1. Need on lisatud peittekstina. Iga juhis annab ülevaate sellel real olevast teabest. Järgmiste toimingute juhised leiate lahtritest A2, A3 jne, kui pole teisiti kirjeldatud. Näiteks võib järgmise toimingu juhiseks olla tekst „jätkake lahtrist A6“. \n\nPeitteksti ei saa printida.\n\nMõnelt töölehelt juhiste eemaldamiseks kustutage veerg A.\n"]
["See tegevuskava kasutab paigutusi, et kanda diagrammile teetähiseid ja tegevusi. Paigutuste abil saab teetähisele või tegevusele kaalu lisada. Reguleerige väärtusi vastavalt sellele, milline on teie kaalueelistus. Näiteks võib teetähisel/tegevusel 3 olla suurem kaal kui teetähisel/tegevusel 2. Selle diagrammis välja toomiseks määrake teetähisele/tegevusele 3 lihtsalt kõrgem paigutuse väärtus kui on teetähisel/tegevusel 2.  \n"]
["See on viimane juhis sellel töölehel."]

{"sheet":"Diagrammi andmed","index":3,"n_rows":26,"n_cols":4,"rows_kept":26,"hidden":true}
["Sellel töölehel asuvad dünaamiliseks diagrammile kandmiseks kasutatavad andmed. Ärge kustutage seda töölehte!\nSelle töölehe kustutamine võib ohustada töövihiku dünaamilise võimekuse funktsiooni.","Ärge kustutage seda töölehte!"]
["Lahtris B2 on tabeli pealkiri.","Dünaamiline diagrammi sisu"]
["Tabelipäised on lahtrites B3–D3. \nSelle tabeli värskendamine toimub automaatselt töölehele Teetähised sisestatud andmete alusel.\nHoiatus. Selle tabeli sisu muutmine või kustutamine võib ohustada tegevuskava töölehe tegevuskava diagrammi dünaamilise värskendamise võimekust.\nJärgmise juhise saamiseks liikuge lahtrisse A15.","Kuupäev","Sündmused","Paigutus"]
[null,{"$f":"IFERROR(IF(LEN(Teetähised!D3)=0,\"\",INDEX(TegevuskavaTeetähiste[],Teetähised!$B3+$B$17,3)),\"\")","v":"2018-06-29"},{"$f":"IFERROR(IF(LEN(Teetähised!E3)=0,\"\",INDEX(TegevuskavaTeetähiste[],Teetähised!$B3+$B$17,4)),\"\")","v":"Algus"},{"$f":"IFERROR(INDEX(TegevuskavaTeetähiste[],Teetähised!$B3+$B$17,2),\"\")","v":1}]
[null,{"$f":"IFERROR(IF(LEN(Teetähised!D4)=0,\"\",INDEX(TegevuskavaTeetähiste[],Teetähised!$B4+$B$17,3)),\"\")","v":"2018-07-09"},{"$f":"IFERROR(IF(LEN(Teetähised!E4)=0,\"\",INDEX(TegevuskavaTeetähiste[],Teetähised!$B4+$B$17,4)),\"\")","v":"Probleemi analüüs\n1. tegevus"},{"$f":"IFERROR(INDEX(TegevuskavaTeetähiste[],Teetähised!$B4+$B$17,2),\"\")","v":-2}]
[null,{"$f":"IFERROR(IF(LEN(Teetähised!D5)=0,\"\",INDEX(TegevuskavaTeetähiste[],Teetähised!$B5+$B$17,3)),\"\")","v":"2018-07-29"},{"$f":"IFERROR(IF(LEN(Teetähised!E5)=0,\"\",INDEX(TegevuskavaTeetähiste[],Teetähised!$B5+$B$17,4)),\"\")","v":"Ärijuhtumi arendamine\n1. tegevus\n2. tegevus"},{"$f":"IFERROR(INDEX(TegevuskavaTeetähiste[],Teetähised!$B5+$B$17,2),\"\")","v":1}]
[null,{"$f":"IFERROR(IF(LEN(Teetähised!D6)=0,\"\",INDEX(TegevuskavaTeetähiste[],Teetähised!$B6+$B$17,3)),\"\")","v":"2018-08-28"},{"$f":"IFERROR(IF(LEN(Teetähised!E6)=0,\"\",INDEX(TegevuskavaTeetähiste[],Teetähised!$B6+$B$17,4)),\"\")","v":"Esitluse ülevaatamine"},{"$f":"IFERROR(INDEX(TegevuskavaTeetähiste[],Teetähised!$B6+$B$17,2),\"\")","v":-1}]
[null,{"$f":"IFERROR(IF(LEN(Teetähised!D7)=0,\"\",INDEX(TegevuskavaTeetähiste[],Teetähised!$B7+$B$17,3)),\"\")","v":"2018-10-07"},{"$f":"IFERROR(IF(LEN(Teetähised!E7)=0,\"\",INDEX(TegevuskavaTeetähiste[],Teetähised!$B7+$B$17,4)),\"\")","v":"Täideviimise käivitus\n1. tegevus\n2. tegevus"},{"$f":"IFERROR(INDEX(TegevuskavaTeetähiste[],Teetähised!$B7+$B$17,2),\"\")","v":-0.5}]
[null,{"$f":"IFERROR(IF(LEN(Teetähised!D8)=0,\"\",INDEX(TegevuskavaTeetähiste[],Teetähised!$B8+$B$17,3)),\"\")","v":"2018-11-26"},{"$f":"IFERROR(IF(LEN(Teetähised!E8)=0,\"\",INDEX(TegevuskavaTeetähiste[],Teetähised!$B8+$B$17,4)),\"\")","v":"Täideviimise kohandamine\n1. tegevus\n2. tegevus\n3. tegevus"},{"$f":"IFERROR(INDEX(TegevuskavaTeetähiste[],Teetähised!$B8+$B$17,2),\"\")","v":2}]
[null,{"$f":"IFERROR(IF(LEN(Teetähised!D9)=0,\"\",INDEX(TegevuskavaTeetähiste[],Teetähised!$B9+$B$17,3)),\"\")","v":"2019-01-25"},{"$f":"IFERROR(IF(LEN(Teetähised!E9)=0,\"\",INDEX(TegevuskavaTeetähiste[],Teetähised!$B9+$B$17,4)),\"\")","v":"Osaniku sisseost"},{"$f":"IFERROR(INDEX(TegevuskavaTeetähiste[],Teetähised!$B9+$B$17,2),\"\")","v":0.5}]
[null,{"$f":"IFERROR(IF(LEN(Teetähised!D10)=0,\"\",INDEX(TegevuskavaTeetähiste[],Teetähised!$B10+$B$17,3)),\"\")","v":"2019-04-05"},{"$f":"IFERROR(IF(LEN(Teetähised!E10)=0,\"\",INDEX(TegevuskavaTeetähiste[],Teetähised!$B10+$B$17,4)),\"\")","v":"Ressursside valimine"},{"$f":"IFERROR(INDEX(TegevuskavaTeetähiste[],Teetähised!$B10+$B$17,2),\"\")","v":-1}]
[null,{"$f":"IFERROR(IF(LEN(Teetähised!D11)=0,\"\",INDEX(TegevuskavaTeetähiste[],Teetähised!$B11+$B$17,3)),\"\")","v":"2019-06-24"},{"$f":"IFERROR(IF(LEN(Teetähised!E11)=0,\"\",INDEX(TegevuskavaTeetähiste[],Teetähised!$B11+$B$17,4)),\"\")","v":"Meeskonna loomine\n1. tegevus "},{"$f":"IFERROR(INDEX(TegevuskavaTeetähiste[],Teetähised!$B11+$B$17,2),\"\")","v":0.5}]
[null,{"$f":"IFERROR(IF(LEN(Teetähised!D12)=0,\"\",INDEX(TegevuskavaTeetähiste[],Teetähised!$B12+$B$17,3)),\"\")","v":"2019-09-22"},{"$f":"IFERROR(IF(LEN(Teetähised!E12)=0,\"\",INDEX(TegevuskavaTeetähiste[],Teetähised!$B12+$B$17,4)),\"\")","v":"Meeskonna käivitus\n1. tegevus \n2. tegevus\n3. tegevus\n4. tegevus"},{"$f":"IFERROR(INDEX(TegevuskavaTeetähiste[],Teetähised!$B12+$B$17,2),\"\")","v":-2}]
[]
["Tegevuskava sirvimist võimaldab astmeline väärtus. Selle võimekuse pealkiri on lahtris B15.\nTabel päisega ja ühe väärtusega on lahtrites B16 ja B17.\nJärgmise juhise saamiseks liikuge lahtrisse A19.","Sirvimisvõimekus"]
[null,"Rea aste"]
[null,0]
[]
["Tegevuskava diagramm kujutab ajaskaala aastaid. Selleks tuleb hankida aastad teetähised loendist. \nSelle jaotise pealkiri on „Aasta“ lahtris B19. \nAastate väärtused genereeritakse automaatselt lahtrites C20–C22.\nHoiatus. Nende aastate kustutamine või muutmine võib muuta tegevuskava diagrammi diagrammile kandmise täpsust.\nJärgmise juhise saamiseks liikuge lahtrisse A24.","Aasta"]
[null,{"$f":"IFERROR(YEAR(B4),\"\")","v":2018},"<-- tegevuskava alguspunkti aasta"]
[null,{"$f":"IFERROR(IF(YEAR($B$9)=$B$20,\"\",YEAR($B$9)),\"\")","v":""},"<-- tegevuskava keskpunkti aasta; võtke arvesse, et see võib olla tühi, kui see kattub tegevuskava alguspunkti aastaga"]
[null,{"$f":"IFERROR(IF(YEAR($B$13)=$B$20,\"\",YEAR($B$13)),\"\")","v":2019},"<-- tegevuskava lõpp-punkti aasta; võtke arvesse, et see võib olla tühi, kui see kattub tegevuskava alguspunkti aastaga"]
[]
["Tegevuskava diagrammi sõõrtähistes on kuupäevad selle töölehe dünaamilise diagrammi sisust. Kuupäevadeks on Esimene kuupäev lahtris C24, Keskmine kuupäev lahtris C25 ja Viimane kuupäev lahtris C26.\nSellel töölehel pole rohkem juhiseid.","Esimene kuupäev",{"$f":"B4","v":"2018-06-29"}]
[null,"Keskmine kuupäev",{"$f":"B9","v":"2018-11-26"}]
[null,"Viimane kuupäev",{"$f":"B13","v":"2019-09-22"}]